bitfinex-derivatives/quotes_BTCF0:USTF0_20241224
["timestamp","ask_amount","ask_price","bid_price","bid_amount"]
[1735013963233,0.15921317,94283.0,94275.0,0.053109]
[1735013963430,0.15921317,94283.0,94276.0,0.04196628]
[1735013963633,0.15921317,94283.0,94277.0,0.04196628]
[1735013963834,0.15921317,94283.0,94275.0,0.053109]
[1735013964134,0.15921317,94283.0,94276.0,0.04196637]
[1735013964435,0.15921317,94282.0,94277.0,0.04196637]
[1735013964638,0.15921317,94282.0,94275.0,0.053109]
[1735013964832,0.15921317,94282.0,94276.0,0.04196605]
[1735013965033,0.15921317,94282.0,94277.0,0.04196605]
[1735013965227,0.15921317,94281.0,94275.0,0.053109]
[1735013965426,0.15921317,94281.0,94276.0,0.04196532]
[1735013965626,0.15921317,94281.0,94275.0,0.053109]
[1735013965828,0.15921317,94281.0,94276.0,0.04196584]
[1735013966026,0.15921317,94281.0,94275.0,0.053109]
[1735013966228,0.15921317,94281.0,94276.0,0.04196598]
[1735013966530,0.15921317,94281.0,94275.0,0.053109]
[1735013966531,0.15921317,94282.0,94275.0,0.054109]
[1735013966737,0.15921317,94282.0,94276.0,0.04196602]
[1735013966937,0.15921317,94282.0,94275.0,0.054109]
[1735013967141,0.15921317,94282.0,94275.0,0.001]
[1735013967338,0.15921317,94282.0,94276.0,0.04196561]
[1735013967534,0.15921317,94282.0,94275.0,0.001]
[1735013967739,0.15921317,94282.0,94273.0,0.3608]
[1735013968035,0.52001317,94282.0,94276.0,0.001]
[1735013968233,0.053108,94277.0,94276.0,0.001]
[1735013969142,0.053109,94276.0,94275.0,0.001]
[1735013969334,0.164909,94276.0,94275.0,0.001]
[1735013970434,0.053113,94268.0,94261.0,0.3608]
[1735013970934,0.053113,94268.0,94261.0,0.32874792]
[1735013971636,0.053113,94268.0,94261.0,0.33374792]
[1735013971842,0.12726596,94266.0,94261.0,0.33374792]
[1735013972231,0.12726596,94266.0,94261.0,0.33674792]
[1735013972834,0.09541481,94263.0,94261.0,0.33674792]
[1735013973535,0.09541481,94263.0,94261.0,0.33174792]
[1735013973843,0.09541481,94263.0,94261.0,0.33474792]
[1735013974041,0.09541481,94263.0,94261.0,0.33774792]
[1735013974238,0.09541481,94263.0,94261.0,0.33874792]
[1735013974640,0.09541481,94263.0,94261.0,0.33574792]
[1735013974934,0.09541481,94263.0,94261.0,0.33974792]
[1735013975833,0.09541481,94263.0,94258.0,0.2978]
[1735013976040,0.09541481,94263.0,94259.0,0.0415466]
[1735013976240,0.09541481,94263.0,94260.0,0.0415466]
[1735013976432,0.09541481,94263.0,94258.0,0.2978]
[1735013976634,0.09541481,94263.0,94259.0,0.04154299]
[1735013977539,0.09541481,94264.0,94259.0,0.04154299]
[1735013979238,0.09541481,94264.0,94258.0,0.01410434]
[1735013979437,0.09541481,94264.0,94253.0,0.07099242]
[1735013979639,0.09541481,94264.0,94255.0,0.04153595]
[1735013979940,0.09841481,94264.0,94255.0,0.04153595]
[1735013980241,0.09841481,94264.0,94256.0,0.04153595]
[1735013980439,0.09541481,94262.0,94257.0,0.04153595]
[1735013980642,0.09541481,94262.0,94254.0,0.37046357]
[1735013980831,0.09541481,94262.0,94255.0,0.04153392]
[1735013981032,0.09541481,94262.0,94254.0,0.37046357]
[1735013981033,0.09541481,94262.0,94256.0,0.04153392]
[1735013981230,0.09541481,94262.0,94257.0,0.04153392]
[1735013981533,0.09541481,94263.0,94254.0,0.37046357]
[1735013981741,0.09541481,94263.0,94255.0,0.04153182]
[1735013982043,0.09541481,94263.0,94256.0,0.04153182]
[1735013982246,0.09541481,94263.0,94257.0,0.04153182]
[1735013982444,0.14853081,94263.0,94254.0,0.37046357]
[1735013982640,0.14853081,94263.0,94255.0,0.04153011]
[1735013982947,0.14853081,94263.0,94256.0,0.04153011]
[1735013983149,0.14853081,94263.0,94257.0,0.04153011]
[1735013983336,0.14853081,94263.0,94258.0,0.04153011]
[1735013983529,0.14853081,94263.0,94254.0,0.37246357]
[1735013983736,0.053116,94263.0,94255.0,0.04152216]
[1735013983938,0.053116,94263.0,94256.0,0.04152216]
[1735013984136,0.053116,94263.0,94257.0,0.04152216]
[1735013984342,0.053116,94263.0,94258.0,0.04152216]
[1735013984644,0.053116,94263.0,94254.0,0.37146357]
[1735013984845,0.053116,94263.0,94255.0,0.04152077]
[1735013985535,0.053116,94263.0,94254.0,0.37046357]
[1735013985536,0.053116,94263.0,94256.0,0.04152077]
[1735013985736,0.053116,94263.0,94257.0,0.04152077]
[1735013985944,0.053116,94263.0,94256.0,0.3608]
[1735013986243,0.053116,94263.0,94257.0,0.04151759]
[1735013986643,0.053116,94263.0,94256.0,0.3608]
[1735013987937,0.053116,94263.0,94256.0,0.3618]
[1735013988138,0.14853081,94263.0,94256.0,0.3618]
[1735013990641,0.053117,94262.0,94256.0,0.3618]
[1735013991354,0.053117,94262.0,94257.0,0.04152119]
[1735013991949,0.14853181,94262.0,94257.0,0.04152119]
[1735013994141,0.09541481,94261.0,94258.0,0.04152119]
[1735013994348,0.09541481,94261.0,94259.0,0.04152119]
[1735013994548,0.09541481,94261.0,94260.0,0.04152119]
[1735013994741,0.053117,94262.0,94260.0,0.04152119]
[1735013994941,0.053117,94262.0,94257.0,0.04094791]
[1735013995147,0.053117,94262.0,94258.0,0.04151996]
[1735013995338,0.053117,94262.0,94259.0,0.04151996]
[1735013995538,0.053117,94262.0,94260.0,0.04151996]
[1735013995739,0.053117,94261.0,94257.0,0.04094791]
[1735013995945,0.053119,94258.0,94257.0,0.001]
[1735013996145,0.053125,94247.0,94245.0,0.3608]
[1735013996443,0.053125,94247.0,94240.0,0.03994791]
[1735013996644,0.053125,94247.0,94241.0,0.04154215]
[1735013996848,0.053125,94247.0,94242.0,0.04154215]
[1735013997150,0.054125,94247.0,94239.0,0.3608]
[1735013997443,0.054125,94247.0,94240.0,0.04153164]
[1735013997847,0.055125,94247.0,94240.0,0.04153164]
[1735013998343,0.09549613,94245.0,94240.0,0.04153164]
[1735013999446,0.055125,94247.0,94240.0,0.04153164]
[1735013999447,0.09549613,94246.0,94240.0,0.04153164]
[1735014000354,0.14962113,94247.0,94240.0,0.04153164]
[1735014000847,0.001,94246.0,94240.0,0.04153164]
[1735014001042,0.001,94246.0,94240.0,0.04253164]
[1735014001242,0.001,94246.0,94241.0,0.04153164]
[1735014001741,0.14962113,94247.0,94241.0,0.04153164]
[1735014002854,0.054125,94247.0,94241.0,0.04153164]
[1735014003156,0.053126,94246.0,94241.0,0.04153164]
[1735014003356,0.054126,94246.0,94239.0,0.3608]
[1735014003543,0.001,94246.0,94239.0,0.3608]
[1735014003747,0.001,94246.0,94237.0,0.35668]
[1735014003748,0.05313,94238.0,94237.0,0.35668]
[1735014004854,0.09649613,94247.0,94245.0,0.053126]
[1735014005044,0.09549613,94247.0,94245.0,0.053126]
[1735014005249,0.12732817,94247.0,94245.0,0.053126]
[1735014006155,0.12832817,94247.0,94245.0,0.053126]
[1735014006453,0.001,94247.0,94246.0,0.40235702]
[1735014006656,0.09534796,94255.0,94253.0,0.053121]
[1735014006958,0.09534796,94255.0,94254.0,0.51355702]
[1735014007547,0.4731,94281.0,94254.0,0.51355702]
[1735014007548,0.09534796,94269.0,94254.0,0.51355702]
[1735014007748,0.09534796,94269.0,94263.0,0.3608]
[1735014007944,0.09534796,94269.0,94264.0,0.04155702]
[1735014008960,0.3608,94272.0,94266.0,0.053114]
[1735014010154,0.3608,94272.0,94264.0,0.004]
[1735014010350,0.3608,94272.0,94263.0,0.3628]
[1735014010660,0.3608,94272.0,94266.0,0.003]
[1735014010853,0.3608,94272.0,94263.0,0.2918]
[1735014011462,0.3608,94275.0,94261.0,0.3608]
[1735014011657,0.3608,94275.0,94262.0,0.04153772]
[1735014012663,0.3608,94275.0,94263.0,0.002]
[1735014012865,0.3608,94275.0,94263.0,0.004]
[1735014013162,0.3608,94275.0,94263.0,0.002]
[1735014013459,0.3608,94275.0,94262.0,0.001]
[1735014013659,0.3608,94275.0,94262.0,0.002]
[1735014013877,0.3608,94275.0,94263.0,0.001]
[1735014014048,0.3608,94275.0,94263.0,0.054115]
[1735014014446,0.3608,94275.0,94263.0,0.055115]
[1735014014953,0.3608,94275.0,94265.0,0.07099242]
[1735014016161,0.3608,94275.0,94265.0,0.07199242]
[1735014017460,0.3608,94275.0,94265.0,0.07299242]
[1735014018055,0.3608,94275.0,94265.0,0.002]
[1735014018362,0.3608,94275.0,94265.0,0.07299242]
[1735014028067,0.3608,94275.0,94265.0,0.12610642]
[1735014029770,0.3608,94275.0,94265.0,0.07299242]
[1735014030067,0.09534796,94277.0,94276.0,0.053108]
[1735014030858,0.09534796,94277.0,94270.0,0.339908]
[1735014031061,0.1123,94281.0,94270.0,0.339908]
[1735014031259,0.1123,94281.0,94276.0,0.001]
[1735014031462,0.053108,94278.0,94276.0,0.001]
[1735014031664,0.05311,94274.0,94261.0,0.053757]
[1735014031864,0.05311,94274.0,94261.0,0.053117]
[1735014032066,0.05311,94274.0,94270.0,0.001]
[1735014033469,0.09534796,94273.0,94270.0,0.001]
[1735014034068,0.09534796,94273.0,94270.0,0.002]
[1735014034263,0.09534796,94273.0,94270.0,0.001]
[1735014034470,0.09534796,94273.0,94271.0,0.053111]
[1735014034672,0.12732817,94274.0,94270.0,0.002]
[1735014034968,0.12732817,94274.0,94272.0,0.053111]
[1735014035765,0.12732817,94274.0,94273.0,0.04148727]
[1735014035962,0.004,94274.0,94273.0,0.04148727]
[1735014036271,0.004,94274.0,94273.0,0.05311]
[1735014036468,0.004,94274.0,94273.0,0.09459727]
[1735014037057,0.008,94274.0,94273.0,0.09559727]
[1735014057600,0.008,94274.0,94273.0,0.04248727]
[1735014057790,0.008,94274.0,94273.0,0.001]
[1735014060397,0.10344238,94274.0,94273.0,0.001]
[1735014063999,0.008,94274.0,94273.0,0.001]
[1735014070813,0.10343058,94274.0,94273.0,0.001]
[1735014072110,0.008,94274.0,94273.0,0.001]
[1735014072905,0.02107606,94274.0,94273.0,0.001]
[1735014076418,0.053119,94258.0,94257.0,0.00159111]
[1735014076617,0.413919,94258.0,94257.0,0.00159111]
[1735014077618,0.414919,94258.0,94257.0,0.00159111]
[1735014078005,0.51027416,94258.0,94257.0,0.00159111]
[1735014079221,0.414919,94258.0,94257.0,0.00159111]
[1735014079821,0.413919,94258.0,94257.0,0.00159111]
[1735014080020,0.416919,94258.0,94257.0,0.00159111]
[1735014080225,0.420919,94258.0,94257.0,0.00159111]
[1735014082713,0.51621613,94258.0,94257.0,0.00159111]
[1735014083217,0.46309713,94258.0,94257.0,0.00159111]
[1735014083609,0.10229713,94258.0,94257.0,0.00159111]
[1735014083923,0.007,94258.0,94257.0,0.01364497]
[1735014087324,0.007,94258.0,94257.0,0.37444497]
[1735014087822,0.09529713,94263.0,94261.0,0.053117]
[1735014088021,0.12714022,94270.0,94257.0,0.37444497]
[1735014088225,0.12714022,94270.0,94269.0,0.053113]
[1735014088226,0.04374022,94270.0,94269.0,0.053113]
[1735014088422,0.04374022,94278.0,94269.0,0.053113]
[1735014088626,0.04374022,94278.0,94270.0,0.04146392]
[1735014088923,0.04374022,94278.0,94268.0,0.10818317]
[1735014089131,0.04374022,94278.0,94267.0,0.3608]
[1735014089815,0.04374022,94278.0,94270.0,0.001]
[1735014090025,0.053109,94277.0,94270.0,0.001]
[1735014090419,0.053109,94277.0,94267.0,0.37314254]
[1735014093128,0.053109,94277.0,94267.0,0.37414254]
[1735014093323,0.053109,94277.0,94267.0,0.01334254]
[1735014094016,0.3608,94272.0,94267.0,0.01334254]
[1735014094224,0.0536,94271.0,94267.0,0.01334254]
[1735014095725,0.0536,94271.0,94267.0,0.01534254]
[1735014096228,0.0536,94271.0,94267.0,0.01634254]
[1735014096528,0.0556,94271.0,94267.0,0.01334254]
[1735014096933,0.0536,94271.0,94267.0,0.01634254]
[1735014099026,0.0556,94271.0,94267.0,0.01334254]
[1735014099616,0.0586,94271.0,94267.0,0.01234254]
[1735014099821,0.0586,94271.0,94267.0,0.3608]
[1735014100320,0.0586,94271.0,94265.0,0.053115]
[1735014100518,0.0556,94271.0,94265.0,0.053115]
[1735014100719,0.0586,94271.0,94265.0,0.053115]
[1735014100931,0.0586,94271.0,94265.0,0.06536917]
[1735014101933,0.0566,94271.0,94265.0,0.06536917]
[1735014102234,0.0586,94271.0,94265.0,0.01225417]
[1735014102423,0.0586,94271.0,94262.0,0.41586]
[1735014102619,0.0586,94271.0,94262.0,0.4153]
[1735014103531,0.0566,94271.0,94262.0,0.4153]
[1735014103732,0.0586,94271.0,94262.0,0.4153]
[1735014104034,0.0576,94271.0,94262.0,0.4153]
[1735014104425,0.0576,94271.0,94262.0,0.42771092]
[1735014105022,0.0556,94271.0,94262.0,0.42771092]
[1735014105219,0.0576,94271.0,94262.0,0.42771092]
[1735014105634,0.0556,94271.0,94262.0,0.42771092]
[1735014105832,0.0576,94271.0,94262.0,0.42771092]
[1735014106134,0.0556,94271.0,94262.0,0.42771092]
[1735014106329,0.0576,94271.0,94262.0,0.42771092]
[1735014106631,0.0576,94271.0,94263.0,0.053116]
[1735014109238,0.0556,94271.0,94263.0,0.053116]
[1735014109424,0.0576,94271.0,94263.0,0.053116]
[1735014110329,0.0576,94271.0,94262.0,0.37321092]
[1735014110631,0.0576,94271.0,94266.0,0.053115]
[1735014111229,0.0576,94271.0,94269.0,0.053113]
[1735014113047,0.0586,94271.0,94269.0,0.053113]
[1735014114136,0.005,94271.0,94269.0,0.053113]
[1735014114738,0.003,94271.0,94270.0,0.3608]
[1735014114930,0.15908246,94288.0,94270.0,0.40230719]
[1735014115233,0.15908246,94288.0,94287.0,0.053105]
[1735014116029,0.0507,94290.0,94282.0,0.339905]
[1735014116534,0.0507,94290.0,94287.0,0.002]
[1735014116734,0.0507,94290.0,94287.0,0.004]
[1735014116949,0.0507,94290.0,94287.0,0.057105]
[1735014117937,0.0507,94290.0,94287.0,0.055105]
[1735014118337,0.0507,94290.0,94287.0,0.053105]
[1735014118535,0.0507,94290.0,94287.0,0.055105]
[1735014119228,0.0507,94290.0,94287.0,0.057105]
[1735014120248,0.0507,94290.0,94287.0,0.06958501]
[1735014124041,0.0507,94290.0,94288.0,0.053104]
[1735014124242,0.0507,94290.0,94288.0,0.413904]
[1735014125141,0.0507,94290.0,94288.0,0.414904]
[1735014125347,0.0507,94290.0,94288.0,0.415904]
[1735014130049,0.3608,94313.0,94288.0,0.415904]
[1735014130050,0.0526,94305.0,94288.0,0.5391]
[1735014130242,0.0526,94305.0,94304.0,0.053095]
[1735014130844,0.0526,94305.0,94296.0,0.339895]
[1735014131055,0.0526,94305.0,94304.0,0.053095]
[1735014131648,0.0526,94305.0,94304.0,0.054095]
[1735014131848,0.0536,94305.0,94304.0,0.054095]
[1735014134046,0.0526,94305.0,94304.0,0.054095]
[1735014134248,0.0526,94305.0,94304.0,0.055095]
[1735014136045,0.0526,94305.0,94304.0,0.06772477]
[1735014145563,0.3608,94313.0,94304.0,0.01462977]
[1735014145765,0.3608,94313.0,94308.0,0.053093]
[1735014145962,0.3608,94313.0,94298.0,0.31153476]
[1735014146162,0.3608,94313.0,94309.0,0.053092]
[1735014147165,0.3608,94313.0,94311.0,0.053091]
[1735014149559,0.3628,94313.0,94311.0,0.053091]
[1735014150472,0.3628,94313.0,94311.0,0.06482249]
[1735014151275,0.3638,94313.0,94311.0,0.06582249]
[1735014151459,0.3628,94313.0,94311.0,0.06582249]
[1735014151660,0.3668,94313.0,94311.0,0.06582249]
[1735014163686,0.3668,94313.0,94312.0,0.04152925]
[1735014164473,0.006,94313.0,94312.0,0.04152925]
[1735014164874,0.004,94313.0,94312.0,0.04252925]
[1735014165070,0.005,94313.0,94312.0,0.04252925]
[1735014165279,0.005,94313.0,94312.0,0.42390364]
[1735014165973,0.005,94313.0,94312.0,0.34990364]
[1735014167777,0.005,94313.0,94311.0,0.06482249]
[1735014169080,0.005,94313.0,94311.0,0.06582249]
[1735014176376,0.005,94313.0,94312.0,0.04114554]
[1735014176774,0.005,94313.0,94311.0,0.06582249]
[1735014176975,0.005,94313.0,94312.0,0.04113718]
[1735014177275,0.005,94313.0,94311.0,0.06582249]
[1735014177484,0.005,94313.0,94312.0,0.04113773]
[1735014177680,0.005,94313.0,94311.0,0.06582249]
[1735014178075,0.005,94313.0,94312.0,0.04113672]
[1735014178286,0.006,94313.0,94312.0,0.04213672]
[1735014178673,0.004,94313.0,94312.0,0.04113672]
[1735014178884,0.006,94313.0,94312.0,0.04113672]
[1735014179384,0.006,94313.0,94312.0,0.09522772]
[1735014180974,0.006,94313.0,94311.0,0.01173149]
[1735014181285,0.006,94313.0,94308.0,0.01592]
[1735014181479,0.006,94313.0,94309.0,0.04076593]
[1735014181685,0.006,94313.0,94310.0,0.04076593]
[1735014181989,0.006,94313.0,94312.0,0.053091]
[1735014182174,0.006,94313.0,94312.0,0.09385693]
[1735014182978,0.004,94313.0,94312.0,0.09385693]
[1735014183175,0.006,94313.0,94312.0,0.09485693]
[1735014185979,0.006,94313.0,94312.0,0.02085693]
[1735014186572,0.006,94313.0,94312.0,0.07394793]
[1735014187285,0.006,94313.0,94312.0,0.43474793]
[1735014189989,0.052,94318.0,94317.0,0.053088]
[1735014190183,0.052,94318.0,94317.0,0.07294493]
[1735014190887,0.12713689,94329.0,94328.0,0.053083]
[1735014191087,0.12713689,94329.0,94328.0,0.07293993]
[1735014191894,0.05,94334.0,94328.0,0.07293993]
[1735014191895,0.05,94334.0,94333.0,0.05308]
[1735014195290,0.0495,94337.0,94329.0,0.31691509]
[1735014195499,0.0495,94337.0,94335.0,0.053079]
[1735014195996,0.0495,94337.0,94329.0,0.30818896]
[1735014196799,0.0495,94337.0,94329.0,0.01219487]
[1735014196990,0.0495,94337.0,94335.0,0.053079]
[1735014197391,0.0505,94337.0,94335.0,0.053079]
[1735014200993,0.0505,94337.0,94325.0,0.36799917]
[1735014201898,0.0505,94337.0,94326.0,0.053084]
[1735014202200,0.0505,94337.0,94326.0,0.1763]
[1735014202497,0.0505,94337.0,94334.0,0.053079]
[1735014203392,0.0505,94337.0,94336.0,0.053078]
[1735014206000,0.0505,94337.0,94327.0,0.026878]
[1735014206201,0.0505,94337.0,94328.0,0.040434]
[1735014206591,0.0505,94337.0,94328.0,0.053083]
[1735014206796,0.0505,94337.0,94327.0,0.026878]
[1735014207392,0.0495,94337.0,94327.0,0.026878]
[1735014207601,0.0505,94337.0,94327.0,0.026878]
[1735014207999,0.0495,94337.0,94335.0,0.053079]
[1735014208305,0.0505,94337.0,94335.0,0.053079]
[1735014209602,0.0495,94337.0,94335.0,0.053079]
[1735014209793,0.0505,94337.0,94335.0,0.053079]
[1735014210903,0.0505,94337.0,94327.0,0.005957]
[1735014211502,0.0505,94337.0,94328.0,0.04045156]
[1735014211899,0.0505,94337.0,94335.0,0.053078]
[1735014214104,0.001,94337.0,94336.0,0.1763]
[1735014214305,0.0532,94347.0,94336.0,0.1763]
[1735014214600,0.0532,94347.0,94346.0,0.053073]
[1735014214802,0.00159029,94348.0,94346.0,0.053073]
[1735014215199,0.00159029,94348.0,94346.0,0.229373]
[1735014215600,0.0952244,94351.0,94350.0,0.229371]
[1735014215801,0.0979,94367.0,94354.0,0.229368]
[1735014216005,0.12703382,94366.0,94357.0,0.1763]
[1735014216197,0.12703382,94366.0,94365.0,0.053062]
[1735014217708,0.0979,94367.0,94365.0,0.053062]
[1735014218099,0.0979,94367.0,94365.0,0.054062]
[1735014218502,0.0475,94367.0,94365.0,0.054062]
[1735014218708,0.0475,94367.0,94365.0,0.053062]
[1735014218905,0.0475,94367.0,94365.0,0.054062]
[1735014219210,0.0475,94367.0,94366.0,0.25277695]
[1735014220903,0.0475,94367.0,94366.0,0.17977695]
[1735014221806,0.0475,94367.0,94366.0,0.001]
[1735014223110,0.0475,94367.0,94366.0,0.01604285]
[1735014223411,0.0475,94367.0,94366.0,0.001]
[1735014225897,0.0475,94367.0,94358.0,0.01592]
[1735014226508,0.0475,94367.0,94365.0,0.053062]
[1735014227809,0.0475,94367.0,94365.0,0.054062]
[1735014236319,0.0485,94375.0,94368.0,0.053058]
[1735014236524,0.0473,94374.0,94368.0,0.053058]
[1735014239324,0.0473,94374.0,94371.0,0.053056]
[1735014242922,0.0473,94374.0,94371.0,0.06827018]
[1735014244429,0.0473,94374.0,94371.0,0.01521418]
[1735014244635,0.0473,94374.0,94373.0,0.053055]
[1735014245835,0.0473,94374.0,94373.0,0.36852048]
[1735014252830,0.0473,94374.0,94373.0,0.053055]
[1735014253432,0.0473,94374.0,94373.0,0.09357264]
[1735014259432,0.0473,94374.0,94373.0,0.053055]
[1735014260436,0.0473,94374.0,94373.0,0.09355]
[1735014260638,0.0473,94374.0,94373.0,0.09455]
[1735014261132,0.0473,94374.0,94373.0,0.09555]
[1735014261735,0.0473,94374.0,94373.0,0.055055]
[1735014262632,0.0473,94374.0,94373.0,0.09554848]
[1735014262932,0.0473,94374.0,94373.0,0.09454848]
[1735014263135,0.0473,94374.0,94373.0,0.09554848]
[1735014263729,0.0473,94374.0,94373.0,0.055055]
[1735014263929,0.0473,94374.0,94373.0,0.09554627]
[1735014264137,0.0473,94374.0,94373.0,0.055055]
[1735014264529,0.0473,94374.0,94373.0,0.09554484]
[1735014264732,0.0473,94374.0,94373.0,0.055055]
[1735014265025,0.0473,94374.0,94373.0,0.09554356]
[1735014265534,0.0473,94374.0,94373.0,0.055055]
[1735014266531,0.0473,94374.0,94373.0,0.09553841]
[1735014267345,0.3608,94376.0,94374.0,0.053057]
[1735014267731,0.3608,94376.0,94375.0,0.1763]
[1735014270836,0.3608,94376.0,94375.0,0.1773]
[1735014271840,0.3608,94376.0,94375.0,0.1919767]
[1735014272436,0.05,94383.0,94375.0,0.1919767]
[1735014272638,0.3608,94382.0,94379.0,0.053054]
[1735014275944,0.3608,94382.0,94378.0,0.29550404]
[1735014277051,0.3608,94382.0,94379.0,0.053054]
[1735014277943,0.3608,94382.0,94378.0,0.29550404]
[1735014279236,0.3608,94382.0,94371.0,0.3802981]
[1735014279237,0.3608,94379.0,94356.0,0.44647652]
[1735014279542,0.3608,94360.0,94357.0,0.63945751]
[1735014279739,0.3608,94360.0,94357.0,0.64001751]
[1735014280043,0.3608,94360.0,94357.0,0.44591652]
[1735014280839,0.3608,94360.0,94350.0,0.05363]
[1735014281038,0.3608,94351.0,94348.0,0.00296572]
[1735014281238,0.053071,94349.0,94348.0,0.00296572]
[1735014282951,0.053071,94349.0,94334.0,0.053079]
[1735014283947,0.18418193,94349.0,94334.0,0.053079]
[1735014284148,0.1976826,94349.0,94339.0,0.07090775]
[1735014284447,0.1976826,94349.0,94342.0,0.053075]
[1735014284646,0.1976826,94349.0,94347.0,0.00612472]
[1735014285149,0.07057167,94349.0,94347.0,0.00612472]
[1735014285849,0.06657167,94349.0,94347.0,0.00912472]
[1735014297046,0.06657167,94349.0,94347.0,7.2e-07]
[1735014298147,9.507e-05,94348.0,94347.0,7.2e-07]
[1735014298656,0.30009507,94348.0,94347.0,7.2e-07]
[1735014299445,0.053087,94321.0,94320.0,0.00159036]
[1735014299647,0.413887,94321.0,94320.0,0.00159036]
[1735014300240,0.413887,94321.0,94320.0,0.01514821]
[1735014300650,0.414887,94321.0,94320.0,0.01514821]
[1735014301154,0.415887,94321.0,94320.0,0.01514821]
[1735014309750,0.415887,94321.0,94320.0,0.00159036]
[1735014316554,0.415887,94321.0,94312.0,0.0497]
[1735014316555,0.053091,94313.0,94312.0,0.0497]
[1735014316758,0.413891,94313.0,94312.0,0.0497]
[1735014317766,0.413891,94313.0,94312.0,0.0527]
[1735014322361,0.54094524,94313.0,94312.0,0.0527]
[1735014323161,0.413891,94313.0,94312.0,0.0527]
[1735014325864,0.54094524,94313.0,94312.0,0.0527]
[1735014330971,0.413891,94313.0,94312.0,0.0527]
[1735014335966,0.41399549,94313.0,94312.0,0.003]
[1735014355184,0.54125471,94313.0,94312.0,0.003]
[1735014355883,0.41399549,94313.0,94312.0,0.003]
[1735014360280,0.0531,94297.0,94296.0,0.38051489]
[1735014360481,0.7747,94297.0,94296.0,0.38051489]
[1735014361276,0.7747,94297.0,94296.0,0.38151489]
[1735014361672,0.7747,94297.0,94296.0,0.001]
[1735014361873,0.7767,94297.0,94296.0,0.001]
[1735014363191,0.9038772,94297.0,94296.0,0.001]
[1735014364490,0.7767,94297.0,94296.0,0.001]
[1735014370491,0.1271772,94301.0,94300.0,0.053099]
[1735014370687,0.15888867,94308.0,94300.0,0.3608]
[1735014371094,0.15888867,94308.0,94307.0,0.053095]
[1735014371297,0.3608,94311.0,94307.0,0.053095]
[1735014372896,0.003,94308.0,94307.0,0.053095]
[1735014373501,0.002,94308.0,94307.0,0.053095]
[1735014373700,0.3608,94321.0,94307.0,0.01573396]
[1735014373903,0.3608,94321.0,94312.0,0.053092]
[1735014375303,0.0952524,94325.0,94312.0,0.413892]
[1735014375802,0.3608,94326.0,94312.0,0.3608]
[1735014376100,0.3608,94326.0,94316.0,0.10812333]
[1735014376295,0.3608,94326.0,94317.0,0.0491]
[1735014376495,0.3608,94326.0,94320.0,0.053087]
[1735014376703,8.364e-05,94325.0,94324.0,0.053085]
[1735014378204,8.364e-05,94325.0,94324.0,0.055085]
[1735014380497,0.00108364,94325.0,94324.0,0.053085]
[1735014392703,8.364e-05,94325.0,94324.0,0.053085]
[1735014392903,0.00208364,94325.0,94324.0,0.053085]
[1735014393512,8.364e-05,94325.0,94324.0,0.053085]
[1735014393712,0.00208364,94325.0,94324.0,0.053085]
[1735014397318,6.4e-07,94325.0,94324.0,0.053085]
[1735014397616,0.60465382,94357.0,94345.0,0.053073]
[1735014397812,0.60529382,94357.0,94345.0,0.053073]
[1735014398404,0.3608589,94346.0,94345.0,0.053073]
[1735014399111,0.3608589,94346.0,94345.0,0.055073]
[1735014401008,0.3608589,94346.0,94345.0,0.058073]
[1735014405808,0.3608589,94346.0,94345.0,0.07294287]
[1735014406008,0.3608589,94346.0,94341.0,0.31535867]
[1735014407016,0.3608589,94346.0,94345.0,0.053073]
[1735014408118,0.3608589,94346.0,94341.0,0.003]
[1735014408312,0.053077,94338.0,94316.0,0.44655652]
[1735014408510,0.3608,94326.0,94316.0,0.44655652]
[1735014408803,0.413884,94326.0,94325.0,0.37971652]
[1735014409008,0.774684,94326.0,94325.0,0.37971652]
[1735014410114,0.774684,94326.0,94320.0,0.51017888]
[1735014410115,0.053086,94324.0,94320.0,0.00056]
[1735014410417,0.053086,94324.0,94310.0,0.01427061]
[1735014410418,0.78781444,94326.0,94310.0,0.01427061]
[1735014410621,0.3608,94314.0,94310.0,0.01427061]
[1735014412014,0.3608,94314.0,94313.0,0.057091]
[1735014412411,0.3608,94314.0,94313.0,0.004]
[1735014412710,0.3618,94314.0,94313.0,0.004]
[1735014414815,0.3618589,94314.0,94313.0,0.004]
[1735014416013,0.3628589,94314.0,94313.0,0.004]
[1735014416425,0.053095,94306.0,94294.0,0.37083697]
[1735014416714,0.413895,94306.0,94294.0,0.35636]
[1735014417718,0.50898487,94306.0,94294.0,0.35636]
[1735014418023,0.51298487,94306.0,94294.0,0.35636]
[1735014418822,0.421895,94306.0,94294.0,0.35636]
[1735014421715,0.43624483,94306.0,94294.0,0.35636]
[1735014423326,0.053101,94295.0,94294.0,0.35636]
[1735014423629,0.053101,94295.0,94289.0,0.0509]
[1735014423630,0.053104,94290.0,94289.0,0.0509]
[1735014424920,0.053104,94290.0,94289.0,0.0539]
[1735014426216,0.054104,94290.0,94289.0,0.0539]
[1735014429419,0.053101,94297.0,94290.0,0.053104]
[1735014430224,0.053097,94303.0,94291.0,0.053103]
[1735014430620,0.001,94297.0,94291.0,0.053103]
[1735014430917,0.053097,94303.0,94291.0,0.053103]
[1735014431625,0.053097,94303.0,94291.0,0.055103]
[1735014432416,0.053097,94303.0,94297.0,0.3608]
[1735014433024,0.054097,94303.0,94297.0,0.3608]
[1735014433618,0.055097,94303.0,94297.0,0.3608]
[1735014433813,0.056097,94303.0,94297.0,0.3608]
[1735014435124,0.003,94303.0,94297.0,0.3608]
[1735014435932,0.003,94303.0,94297.0,0.4139]
[1735014436123,0.053093,94311.0,94297.0,0.4139]
[1735014436324,0.053093,94311.0,94306.0,0.3608]
[1735014436526,0.053093,94311.0,94307.0,0.0505]
[1735014437028,0.053093,94311.0,94308.0,0.0502]
[1735014437429,0.054093,94311.0,94308.0,0.0502]
[1735014438031,0.055093,94311.0,94308.0,0.0502]